Workbook

Sheet Fin. Highlights12.2016
A1: Financial Highlights
B2: =lead!C5 -> Three Months Ended December 31, | F2: =lead!C6 -> Years Ended December 31,
B3: 2016 | D3: 2015 | F3: =B3 -> 2016 | H3: =D3 -> 2015
D4: (As Restated)* | H4: (As Restated)*
B5: (in thousands, except per unit data)
A6: Revenues | B6: 88307 | D6: 82873 | F6: 326230 | H6: 320319
A7: Net loss | B7: -5997 | D7: -8021 | F7: -30483 | H7: -23391
A8: Net cash provided by (used in) operating activities | B8: 4280 | D8: -7968 | F8: 22767 | H8: 4062
A9: Growth in accounts receivable | B9: 2968 | D9: 4035 | F9: 12135 | H9: 8873
A10: Growth in merchandise trust fund | B10: 3853 | D10: 18929 | F10: 17101 | H10: 44640
A11: Cash distributions | B11: 11887 | D11: 21387 | F11: 69665 | H11: 80950
A12: per unit | B12: 0.33 | D12: 0.66 | F12: 1.98 | H12: 2.61

Sheet BS 12.2016
A1: STONEMOR PARTNERS L.P.
A2: CONSOLIDATED BALANCE SHEETS
A3: (in thousands)
B5: December 31,
B6: 2016 | D6: 2015
A7: Assets | D7: (As restated)*
A8: Current assets:
A9: Cash and cash equivalents | B9: 12570 | D9: 15153
A10: Accounts receivable, net of allowance | B10: 77253 | D10: 68415
A11: Prepaid expenses | B11: 5532 | D11: 5367
A12: Other current assets | B12: 23466 | D12: 20799
A13: Total current assets | B13: 118821 | D13: 109734
A15: Long-term accounts receivable, net of allowance | B15: 98886 | D15: 95167
A16: Cemetery property | B16: 337315 | D16: 334457
A17: Property and equipment, net of accumulated depreciation | B17: 118281 | D17: 116127
A18: Merchandise trusts, restricted, at fair value | B18: 507079 | D18: 472368
A19: Perpetual care trusts, restricted, at fair value | B19: 333780 | D19: 307804
A20: Deferred selling and obtaining costs | B20: 116890 | D20: 106124
A21: Deferred tax assets | B21: 64 | D21: 61
A22: Goodwill | B22: 70436 | D22: 69851
A23: Intangible assets | B23: 65438 | D23: 67209
A24: Other assets | B24: 20023 | D24: 20618
A25: Total assets | B25: 1787013 | D25: 1699520
A27: Liabilities and Partners' Capital
A28: Current liabilities:
A29: Accounts payable and accrued liabilities | B29: 35547 | D29: 28547
A30: Accrued interest | B30: 1571 | D30: 1503
A31: Current portion, long-term debt | B31: 1775 | D31: 2440
A32: Total current liabilities | B32: 38893 | D32: 32490
A34: Long-term debt, net of deferred financing costs | B34: 300351 | D34: 316399
A35: Deferred revenues | B35: 866633 | D35: 791450
A36: Deferred tax liabilities | B36: 20058 | D36: 18999
A37: Perpetual care trust corpus | B37: 333780 | D37: 307804
A38: Other long-term liabilities | B38: 36944 | D38: 27667
A39: Total liabilities | B39: 1596659 | D39: 1494809
A41: Commitments and contingencies
A42: Partners' capital (deficit):
A43: General partner interest | B43: -1914 | D43: 480
A44: Common limited partners' interest | B44: 192268 | D44: 204231
A45: Total partners' capital | B45: 190354 | D45: 204711
A47: Total liabilities and partners' capital | B47: 1787013 | D47: 1699520
B65: =+B25-B47 -> 0

Sheet IS 12.2016
A1: STONEMOR PARTNERS L.P.
A2: CONSOLIDATED STATEMENTS OF OPERATIONS
A3: (in thousands, except per unit data)
B5: Years Ended December 31,
B6: 2016 | D6: 2015
B7: `
A8: Revenues: | D8: (As restated)*
A9: Cemetery:
A10: Merchandise | B10: 150439 | D10: 143543
A11: Services | B11: 57781 | D11: 59935
A12: Investment and other | B12: 57506 | D12: =58771-2 -> 58769
A13: Funeral home:
A14: Merchandise | B14: 27625 | D14: =27042-18 -> 27024
A15: Services | B15: 32879 | D15: 31048
A16: Total revenues | B16: =+B10+B11+B12+B14+B15 -> 326230 | D16: =+D10+D11+D12+D14+D15 -> 320319
A18: Costs and Expenses:
A19: Cost of goods sold | B19: 45577 | D19: =52019-1149 -> 50870
A20: Cemetery expense | B20: 72736 | D20: 71296
A21: Selling expense | B21: 67267 | D21: 59569
A22: General and administrative expense | B22: =38053-302-2 -> 37749 | D22: =36371+1080 -> 37451
A23: Corporate overhead | B23: =33599+6019 -> 39618 | D23: 38609
A24: Depreciation and amortization | B24: 12899 | D24: 12803
A25: Funeral home expenses:
A26: Merchandise | B26: 8193 | D26: 6928
A27: Services | B27: 24772 | D27: =22959+10 -> 22969
A28: Other | B28: =20388-81-2 -> 20305 | D28: =17526+280 -> 17806
A29: Total costs and expenses | B29: =SUM(B19:B28) -> 329116 | D29: =SUM(D19:D28) -> 318301
A33: Gain on acquisitions and divestitures | B33: 2614 | D33: 1540
A34: Gain on settlement agreement, net | B34: 0 | D34: 0
A35: Legal settlement | B35: 0 | D35: -3135
A36: Loss on early extinguishment of debt | B36: -1234 | D36: 0
A37: Other losses, net | B37: -2900 | D37: -296
A38: Interest expense | B38: -24488 | D38: -22585
A40: Loss from continuing operations before income taxes | B40: =(B16-B29)+SUM(B33:B38) -> -28894 | D40: =(D16-D29)+SUM(D33:D38) -> -22458
A42: Income tax benefit (expense) | B42: -1589 | D42: -933
A44: Net loss | B44: =B40+B42 -> -30483 | D44: =D40+D42 -> -23391
A46: General partner's interest | B46: =[5]PC!F25 -> 2016 | D46: =[5]PC!F19 -> 3607
A48: Limited partners' interest | B48: =B44-B46 -> -32499 | D48: =D44-D46 -> -26998
A50: Net loss per limited partner unit (basic and diluted) | B50: =ROUND(+B48/B52,2) -> -0.94 | D50: =ROUND(+D48/D52,2) -> -0.89
A52: Weighted average number of limited partners' units outstanding (basic and diluted) | B52: 34602 | D52: 30472

Sheet SCF 12.2016
A1: STONEMOR PARTNERS L.P.
A2: CONSOLIDATED STATEMENTS OF CASH FLOWS
A3: (in thousands)
B4: Years Ended December 31,
B5: 2016 | D5: 2015
A6: Cash Flows From Operating Activities: | D6: (As restated)*
A7: Net loss | B7: -30483 | D7: -23391
A8: Adjustments to reconcile net loss to net cash provided by operating activities:
A9: Cost of lots sold | B9: 9581 | D9: 13103
A10: Depreciation and amortization | B10: 12899 | D10: 12803
A11: Provision for cancellations | B11: 10681 | D11: 9430
A12: Non-cash compensation expense | B12: 1147 | D12: 1516
A13: Non-cash interest expense | B13: 4430 | D13: 2949
A14: Gain on acquisitions and divestitures | B14: -2614 | D14: -1540
A16: Loss on early extinguishment of debt | B16: 1234 | D16: 0
A17: ='IS 12.2016'!A37 -> Other losses, net | B17: 1947 | D17: 296
A18: Changes in assets and liabilities:
A19: Accounts receivable, net of allowance | B19: -22816 | D19: -18303
A20: Merchandise trust fund | B20: -17101 | D20: -44640
A21: Other assets | B21: -562 | D21: -4216
A22: Deferred selling and obtaining costs | B22: -10775 | D22: -13052
A23: Deferred revenues | B23: 54135 | D23: 66673
A24: Deferred taxes, net | B24: 743 | D24: -18
A25: Payables and other liabilities | B25: 10321 | D25: 2452
A26: Net cash provided by operating activities | B26: 22767 | D26: 4062
A28: Cash Flows From Investing Activities:
A29: Cash paid for capital expenditures | B29: -11382 | D29: -15339
A30: Cash paid for acquisitions | B30: -10550 | D30: -18800
A31: Consideration for lease and management agreements | B31: 0 | D31: 0
A32: Proceeds from asset sales | B32: 2803 | D32: 0
A33: Net cash used in investing activities | B33: -19129 | D33: -34139
A35: Cash Flows From Financing Activities:
A36: Cash distributions | B36: -79164 | D36: -77512
A37: Proceeds from borrowings | B37: 229595 | D37: 148295
A38: Repayments of debt | B38: -243984 | D38: -111034
A39: Proceeds from issuance of common units, net of costs | B39: 94314 | D39: 75156
A40: Fees paid related to early extinguishment of debt | B40: 0 | D40: 0
A41: Cost of financing activities | B41: -6982 | D41: -76
A42: Net cash provided by (used in) financing activities | B42: -6221 | D42: 34829
A43: Net increase (decrease) in cash and cash equivalents | B43: -2583 | D43: 4752
A44: Cash and cash equivalents - Beginning of period | B44: 15153 | D44: 10401
A45: Cash and cash equivalents - End of period | B45: 12570 | D45: 15153
A47: Supplemental disclosure of cash flow information:
A48: Cash paid during the period for interest | B48: 20124 | D48: 19352
A49: Cash paid during the period for income taxes | B49: 2875 | D49: 4294
A51: Non-cash investing and financing activities:
A52: Acquisition of assets by financing | B52: 3829 | D52: 874
A53: Issuance of limited partner units for cemetery acquisition | B53: 0 | D53: 0
A54: Acquisition of assets by assumption of directly related liability | B54: 0 | D54: 876

Sheet lead (hidden)
A1: Current year | C1: 2016
A2: Current Quarter | C2: December 31, 2016
C3: At December 31,
A5: Current Quarter long format | C5: Three Months Ended December 31,
A6: Current Quarter YTD format | C6: Years Ended December 31,
A9: Prior Year | C9: 2015
A10: Prior Quarter | C10: December 31, 2015
A11: Prior Quarter
A12: Prior Year YTD format | C12: Nine months ended September 30, 2015
C18: Tied to issued documents
C19: Tied to Ledger

Sheet BS (hidden)
A1: STONEMOR PARTNERS L.P.
A2: CONSOLIDATED BALANCE SHEETS
A3: (unaudited; in thousands)
A5: ASSETS | C5: =lead!C2 -> December 31, 2016 | E5: =lead!C10 -> December 31, 2015
A6: Current assets:
A7: Cash and cash equivalents | C7: 12570 | E7: 15153
A8: Accounts receivable, net of allowance | C8: 77253 | E8: 68415
A9: Prepaid expenses | C9: 5532 | E9: 5367
A10: Other current assets | C10: 20626 | E10: 18101
A11: Total current assets | C11: =SUM(C7:C10) -> 115981 | E11: =SUM(E7:E10) -> 107036
A13: Long-term accounts receivable, net of allowance | C13: 97615 | E13: 95167
A14: Cemetery property | C14: 338492 | E14: 334457
A15: Property and equipment, net of accumulated depreciation | C15: 118281 | E15: 116127
A16: Merchandise trusts, restricted, at fair value | C16: 507079 | E16: 472368
A17: Perpetual care trusts, restricted, at fair value | C17: 333780 | E17: 307804
A18: Deferred selling and obtaining costs | C18: 119488 | E18: 108236
A19: Deferred tax assets | C19: 184 | E19: 181
A20: Goodwill | C20: 70436 | E20: =69851 -> 69851
A21: Intangible assets | C21: 65438 | E21: 67209
A22: Other assets | C22: 15815 | E22: 16167
A23: Total assets | C23: =+SUM(C11:C22) -> 1782589 | E23: =+SUM(E11:E22) -> 1694603
A25: LIABILITIES AND PARTNERS’ CAPITAL
A26: Current liabilities:
A27: Accounts payable and accrued liabilities | C27: 34663 | E27: 27412
A28: Accrued interest | C28: 1571 | E28: 1503
A29: Current portion of Long-term debt | C29: 1775 | E29: 2440
A30: Total current liabilities | C30: =SUM(C27:C29) -> 38009 | E30: =SUM(E27:E29) -> 31355
A32: Long-term debt, net of deferred financing costs | C32: 300351 | E32: 316399
A33: Deferred revenues | C33: 874602 | E33: 795929
A34: Deferred tax liabilities | C34: 18759 | E34: 17747
A35: Perpetual care trust corpus | C35: 333780 | E35: 307804
A36: Other long-term liabilities | C36: 28946 | E36: 21508
A37: Total liabilities | C37: =SUM(C30:C36) -> 1594447 | E37: =SUM(E30:E36) -> 1490742
A39: Partners’ capital:
A40: General partner’s interest | C40: -1992 | E40: 417
A41: Common limited partners’ interests | C41: 190134 | E41: 203444
A42: Total partners’ capital | C42: =SUM(C40:C41) -> 188142 | E42: =SUM(E40:E41) -> 203861
A43: Total liabilities and partners’ capital | C43: =C37+C42 -> 1782589 | E43: =E37+E42 -> 1694603
C47: =C23-C43 -> 0 | E47: =E23-E43 -> 0

Sheet IS (hidden)
A1: STONEMOR PARTNERS L.P.
A2: CONSOLIDATED STATEMENTS OF OPERATIONS
A3: (unaudited; in thousands, except per unit data)
C5: =lead!C5 -> Three Months Ended December 31, | G5: =lead!C6 -> Years Ended December 31,
C6: 2016 | E6: 2015 | G6: =C6 -> 2016 | I6: =E6 -> 2015
A7: Revenues: | O7: Amended 9/30/16 YTD | P7: Amended 9/30/15 YTD
A8: Cemetery:
A9: Merchandise | C9: 40202 | E9: =I9-P9 -> 36292 | G9: 147986 | I9: 142264 | O9: 106937 | P9: 105972
A10: Services | C10: 15838 | E10: =I10-P10 -> 15147 | G10: 57368 | I10: 60016 | O10: 41067 | P10: 44869
A11: Investment and other | C11: 16724 | E11: =I11-P11 -> 15046 | G11: 57454 | I11: 57983 | O11: 40689 | P11: 42937
A12: Funeral home:
A13: Merchandise | C13: =G13-O13 -> 6733 | E13: =I13-P13 -> 6809 | G13: 27414 | I13: 26722 | O13: 20681 | P13: 19913
A14: Services | C14: 8660 | E14: =I14-P14 -> 8078 | G14: 33195 | I14: 31161 | O14: 24373 | P14: 23083
A15: Total revenues | B15: 0 | C15: =SUM(C9:C14) -> 88157 | E15: =SUM(E9:E14) -> 81372 | G15: =SUM(G9:G14) -> 323417 | I15: =SUM(I9:I14) -> 318146 | O15: 233747 | P15: 236774
A17: Costs and expenses:
A18: Cost of goods sold (exclusive of depreciation) | C18: =G18-O18 -> 9959 | E18: =I18-P18 -> 15513 | G18: 44442 | I18: 50870 | O18: 34483 | P18: 35357
A19: Cemetery expense | C19: 19469 | E19: 17507 | G19: 72736 | I19: 71296 | O19: 53267 | P19: 53789
A20: Selling expense | C20: 19524 | E20: 14930 | G20: 66833 | I20: 59256 | O20: 46898 | P20: 44326
A21: General and administrative expense | C21: 9951 | E21: 10391 | G21: 37670 | I21: 37731 | O21: 27719 | P21: 27340
A22: Corporate overhead | C22: 9512 | E22: 9982 | G22: 39618 | I22: 38609 | O22: 30106 | P22: 28627
A23: Depreciation and amortization | C23: 3752 | E23: 3596 | G23: 12899 | I23: 12803 | O23: 9147 | P23: 9207
A24: Funeral home expenses:
A25: Merchandise | C25: =G25-O25 -> 1851 | E25: =I25-P25 -> 1484 | G25: 8157 | I25: 6928 | O25: 6306 | P25: 5444
A26: Services | C26: =G26-O26 -> 6046 | E26: =I26-P26 -> 6231 | G26: 24718 | I26: 22959 | O26: 18672 | P26: 16728
A27: Other | C27: =G27-O27 -> 5069 | E27: =I27-P27 -> 4191 | G27: 20388 | I27: 17526 | O27: 15319 | P27: 13335
A28: Total costs and expenses | C28: =SUM(C18:C27) -> 85133 | E28: =SUM(E18:E27) -> 83825 | G28: =SUM(G18:G27) -> 327461 | I28: =SUM(I18:I27) -> 317978 | O28: 241917 | P28: 234153
A30: Other gains (losses), net
A31: Gain/(loss) on acquisitions and divestitures | C31: 553 | E31: 0 | G31: 2614 | I31: 1540
A32: Legal settlement | C32: 0 | E32: -135 | G32: 0 | I32: -3135
A33: Loss on early extinguishment of debt | C33: 0 | D33: 0 | E33: 0 | G33: -1234 | I33: 0
A34: Other gains/(losses), net | C34: -494 | E34: -296 | G34: -2900 | I34: -296
A35: Interest expense | C35: =G35-O35 -> -7056 | E35: =I35-P35 -> -5683 | G35: -24487 | I35: -22585 | O35: -17431 | P35: -16902
A37: Income/(loss) from continuing operations before income taxes | C37: =(C15-C28)+SUM(C30:C35) -> -3973 | E37: =(E15-E28)+SUM(E30:E35) -> -8567 | G37: =(G15-G28)+SUM(G30:G35) -> -30051 | I37: =(I15-I28)+SUM(I30:I35) -> -24308 | O37: -27180 | P37: -15741
A39: Income tax benefit (expense) | C39: =G39-O39 -> -1204 | E39: =I39-P39 -> -267 | G39: -1794 | I39: -938 | O39: -590 | P39: -671
A40: Net loss | C40: =SUM(C37:C39) -> -5177 | E40: =SUM(E37:E39) -> -8834 | G40: =SUM(G37:G39) -> -31845 | I40: =SUM(I37:I39) -> -25246 | O40: -27770 | P40: -16412
A42: Allocation of net loss attributable to limited partners and the general partner:
A43: General partner’s interest | C43: =G43-O43 -> -42 | E43: =I43-P43 -> 967 | G43: 2001 | I43: 3572 | O43: 2043 | P43: 2605
A44: Limited partners’ interest | C44: =C40-C43 -> -5135 | E44: =I44-P44 -> -9801 | G44: -33846 | I44: -28818 | O44: -29813 | P44: -19017
A45: Net loss | C45: =SUM(C43:C44) -> -5177 | E45: =SUM(E43:E44) -> -8834 | G45: =SUM(G43:G44) -> -31845 | I45: =SUM(I43:I44) -> -25246 | O45: -27770 | P45: -16412
A47: Net loss attributable to common limited partners per unit
A48: (basic and diluted) | C48: =C44/C51 -> -0.1444810219 | E48: =E44/E51 -> -0.3078203518 | G48: =G44/G51 -> -0.9781515519 | I48: =I44/I51 -> -0.9457206616 | O48: -0.8695132266 | P48: -0.6336676552
A50: Weighted average limited partner units outstanding:
A51: Basic and diluted | C51: 35541 | E51: 31840 | G51: 34602 | I51: 30472 | O51: 34287 | P51: 30011

Sheet SCF (hidden)
A1: STONEMOR PARTNERS L.P.
A2: CONSOLIDATED STATEMENTS OF CASH FLOWS
A3: (unaudited; in thousands)
B4: =lead!C6 -> Years Ended December 31,
B5: 2016 | D5: 2015
A7: Cash Flows From Operating Activities:
A8: Net loss | B8: =IS!G45 -> -31845 | D8: =IS!I45 -> -25246
A9: Adjustments to reconcile net loss to net cash provided by operating activities:
A10: Cost of lots sold | B10: 9674 | D10: 13103
A11: Depreciation and amortization | B11: =IS!G23 -> 12899 | D11: =IS!I23 -> 12803
A12: Non-cash compensation expense | B12: 1147 | D12: 1516
A13: Non-cash interest expense | B13: 4430 | D13: 2949
A14: Gain (loss) on acquisitions and divestitures, net | B14: 0 | D14: 0
A15: Gain/(loss) on acquisitions and divestitures | B15: -2614 | D15: -1540
A16: Loss on early extinguishment of debt | B16: 1234 | D16: =-[6]IS!F38 -> 0
A17: Other gains/(losses), net | B17: 1947 | D17: 296
A18: Changes in assets and liabilities: | K18: =SUM(B8:B17) -> -3128 | M18: =SUM(D8:D17) -> 3881 | N18: =K18-M18 -> -7009
A19: Accounts receivable, net of allowance | B19: -10781 | D19: -8873
A20: Merchandise trust fund | B20: -17101 | D20: -44640
A21: Other assets | B21: 2295 | D21: -3007 | H21: float
A22: Deferred selling and obtaining costs | B22: -11261 | D22: -13375 | H22: float
A23: Deferred revenues | B23: 58280 | D23: 68833 | H23: float
A24: Deferred taxes (net) | B24: 696 | D24: -13 | H24: float
A25: Payables and other liabilities | B25: 3767 | D25: 1256 | K25: =SUM(B19:B25) -> 25895 | M25: =SUM(D19:D25) -> 181 | N25: =K25-M25 -> 25714
A26: Net cash provided by operating activities | B26: =SUM(B8:B25) -> 22767 | D26: =SUM(D8:D25) -> 4062
A28: Cash Flows From Investing Activities:
A29: Cash paid for capital expenditures | B29: -11382 | D29: -15339
A30: Cash paid for acquisitions | B30: -10550 | D30: -18800
A31: Proceeds from asset sales | B31: 2803 | D31: 0
A32: Net cash used in investing activities | B32: =SUM(B29:B31) -> -19129 | D32: =SUM(D29:D31) -> -34139
A34: Cash Flows From Financing Activities:
A35: Cash distributions | B35: -79164 | D35: -77512
A36: Proceeds from borrowings | B36: 229595 | D36: 148295
A37: Repayments of debt | B37: -243984 | D37: -111034
A38: Proceeds from public offerings | B38: 0 | D38: 0
A39: Proceeds from issuance of common units | B39: 94314 | D39: 75156
A40: Fees paid related to early extinguishment of debt
A41: Cost of financing activities | B41: -6982 | D41: -76
A42: Net cash provided by (used in) financing activities | B42: =SUM(B35:B41) -> -6221 | D42: =SUM(D35:D41) -> 34829
A43: Net increase (decrease) in cash and cash equivalents | B43: =B26+B32+B42 -> -2583 | D43: =D26+D32+D42 -> 4752
A44: Cash and cash equivalents - Beginning of period | B44: 15153 | D44: 10401
A45: Cash and cash equivalents - End of period | B45: =+B44+B43 -> 12570 | D45: =+D44+D43 -> 15153
A47: Supplemental disclosure of cash flow information:
A48: Cash paid during the period for interest | B48: 20124 | D48: 19352
A49: Cash paid during the period for income taxes | B49: 2875 | D49: 4294
A51: Non-cash investing and financing activities:
A52: Acquisition of assets by financing | B52: 3829 | D52: 874
A53: Issuance of limited partner units for cemetery acquisition | B53: 0 | D53: 0
A54: Acquisition of assets by assumption of directly related liability | B54: 0 | D54: 876
B62: =BS!C7 -> 12570 | D62: =BS!E7 -> 15153
B63: =B45-B62 -> 0 | D63: =D45-D62 -> 0
I68: =lead!C5 -> Three Months Ended December 31, | M68: =lead!C6 -> Years Ended December 31, | T68: YTD 9.30.16 | V68: YTD 9.30.15
I69: 2016 | K69: 2015 | M69: =I69 -> 2016 | O69: =K69 -> 2015
D70: FLOAT | I70: =M70-T70 -> 13245 | K70: =O70-V70 -> 9661 | M70: =SUM(B21:B24) -> 50010 | O70: =SUM(D21:D24) -> 52438 | T70: =-6270+-10716+53996+-245 -> 36765 | V70: =-6740+-10959+60516+-40 -> 42777
D71: GAAP Adjustment Operating Profit (Seg Consol Tabs) | I71: =-ebitda!C18 -> -6470 | K71: =-ebitda!E18 -> -16327 | M71: =-ebitda!G18 -> -54090 | O71: =-ebitda!I18 -> -66275
D72: Other float related changes (To CF Analysis Tab) | I72: =SUM(I70:I71) -> 6775 | K72: =SUM(K70:K71) -> -6666 | M72: =SUM(M70:M71) -> -4080 | O72: =SUM(O70:O71) -> -13837

Sheet metrics (hidden)
A1: STONEMOR PARTNERS L.P.
A2: FINANCIAL AND OPERATING DATA
A3: (unaudited; in thousands)
C5: =lead!C5 -> Three Months Ended December 31, | G5: =lead!C6 -> Years Ended December 31,
C6: 2016 | E6: 2015 | G6: =C6 -> 2016 | I6: =E6 -> 2015
A8: Financial Data:
A9: Net loss (in thousands) | C9: =IS!C40 -> -5177 | E9: =IS!E40 -> -8834 | G9: =IS!G40 -> -31845 | I9: =IS!I40 -> -25246
A11: Net loss per limited partner unit – basic and diluted | C11: =IS!C48 -> -0.1444810219 | E11: =IS!E48 -> -0.3078203518 | G11: =IS!G48 -> -0.9781515519 | I11: =IS!I48 -> -0.9457206616
A13: Distributable Available Cash (in thousands) (1) | C13: ='Fin. Highlights12.2016'!B9 -> 2968 | E13: ='Fin. Highlights12.2016'!D9 -> 4035 | G13: ='Fin. Highlights12.2016'!F9 -> 12135 | I13: ='Fin. Highlights12.2016'!H9 -> 8873
B14: 0
A15: Cash distributions paid | C15: ='Fin. Highlights12.2016'!B10 -> 3853 | E15: ='Fin. Highlights12.2016'!D10 -> 18929 | G15: ='Fin. Highlights12.2016'!F10 -> 17101 | I15: ='Fin. Highlights12.2016'!H10 -> 44640
A17: Cash distributions paid per unit (2) | B17: 0 | C17: ='Fin. Highlights12.2016'!B11 -> 11887 | E17: ='Fin. Highlights12.2016'!D11 -> 21387 | G17: ='Fin. Highlights12.2016'!F11 -> 69665 | I17: ='Fin. Highlights12.2016'!H11 -> 80950
A18: Operating Data:
A19: Interments Performed | B19: 0 | C19: 13889 | E19: 13323 | G19: 54050 | I19: 54837
A20: Interment rights sold (3):
A21: Lots | B21: 0 | C21: 6440 | E21: 9282 | G21: 30150 | I21: 33262
A22: Mausoleum crypts (including pre-construction) | C22: 382 | E22: 426 | G22: 1853 | I22: 2205
A23: Niches | C23: 449 | E23: 334 | G23: 1630 | I23: 1619
A24: Net interment rights sold (3) | C24: =SUM(C21:C23) -> 7271 | E24: =SUM(E21:E23) -> 10042 | G24: =SUM(G21:G23) -> 33633 | I24: =SUM(I21:I23) -> 37086
A26: Number of cemetery contracts written | C26: =SUM(C30,C35) -> 25428 | E26: =SUM(E30,E35) -> 27180 | G26: =SUM(G30,G35) -> 107228 | I26: =SUM(I30,I35) -> 113696
A27: Aggregate contract billings (in thousands, excluding interest) | C27: =SUM(C32,C37) -> 60923 | E27: =SUM(E32,E37) -> 61424 | G27: =SUM(G32,G37) -> 254125 | I27: =SUM(I32,I37) -> 262383
A28: Average billings per contract (excluding interest) | C28: =ROUND((+C27/C26)*1000,0) -> 2396 | E28: =ROUND((+E27/E26)*1000,0) -> 2260 | G28: =ROUND((+G27/G26)*1000,0) -> 2370 | I28: =ROUND((+I27/I26)*1000,0) -> 2308
A30: Number of pre-need cemetery contracts written | C30: 10488 | E30: 12381 | G30: 47443 | I30: 52228
A31: Aggregate pre-need contract billings (in thousands,
A32: excluding interest) | C32: =ebitda!C21 -> 35211 | E32: =ebitda!E21 -> 36409 | G32: =ebitda!G21 -> 152071 | I32: =ebitda!I21 -> 158806
A33: Average billings per pre-need contract (excluding interest) | C33: =ROUND((+C32/C30)*1000,0) -> 3357 | E33: =ROUND((+E32/E30)*1000,0) -> 2941 | G33: =ROUND((+G32/G30)*1000,0) -> 3205 | I33: =ROUND((+I32/I30)*1000,0) -> 3041
A35: Number of at-need cemetery contracts written | C35: 14940 | E35: 14799 | G35: 59785 | I35: 61468
A36: Aggregate at-need contract billings (in thousands
A37: excluding interest) | C37: =ebitda!C22 -> 25712 | E37: =ebitda!E22 -> 25015 | G37: =ebitda!G22 -> 102054 | I37: =ebitda!I22 -> 103577
A38: Average billings per at-need contract (excluding interest) | C38: =ROUND((+C37/C35)*1000,0) -> 1721 | E38: =ROUND((+E37/E35)*1000,0) -> 1690 | G38: =ROUND((+G37/G35)*1000,0) -> 1707 | I38: =ROUND((+I37/I35)*1000,0) -> 1685
A40: Funeral home calls | C40: 4240 | E40: 4034 | G40: 16987 | I40: 15826
A42: (1) These non-GAAP measures are used internally by the Partnership to measure Partnership operating performance, and management believes that they are relevant and helpful to investors in understanding that performance. A reconciliation of GAAP net loss to Distributable Cash Flow and Distributable Available Cash is provided in the financial tables of this release. Please see footnotes 1 and 3 to the Financial and Operating Highlights table of this release.
A44: (2) Represents the cash distributions declared for the respective period and paid by the Partnership within 45 days after the end of each quarter, utilizing the distributable cash flow generated during the respective period.
A46: (3) Net of cancellations. Sales of double-depth burial lots are counted as two sales.
B55: 0
B58: 0

Sheet ebitda (hidden)
A1: STONEMOR PARTNERS L.P.
A2: FINANCIAL AND OPERATING HIGHLIGHTS
A3: (unaudited; in thousands, except per unit data)
C6: =lead!C5 -> Three Months Ended December 31, | G6: =lead!C6 -> Years Ended December 31,
A7: Reconciliation of net loss to non-GAAP measures (1): | C7: 2016 | E7: 2015 | G7: =C7 -> 2016 | I7: =E7 -> 2015
A8: Net loss | C8: =IS!C40 -> -5177 | E8: =IS!E40 -> -8834 | G8: =IS!G40 -> -31845 | I8: =IS!I40 -> -25246
A9: Acquisition and related costs | C9: 1397 | E9: 1575 | G9: 6019 | I9: 3223
A10: Depreciation and amortization | C10: =IS!C23 -> 3752 | E10: =IS!E23 -> 3596 | G10: =IS!G23 -> 12899 | I10: =IS!I23 -> 12803
A11: Non-cash amortization of cemetery property | C11: =G11-6773 -> 2901 | E11: =I11-7506 -> 5597 | G11: =SCF!B10 -> 9674 | I11: =SCF!D10 -> 13103
A12: Non-cash interest expense | C12: =G12-2510 -> 1920 | E12: =I12-2207 -> 742 | G12: =SCF!B13 -> 4430 | I12: =SCF!D13 -> 2949
A13: Non-cash stock compensation expense | C13: =G13-1468 -> -321 | E13: =I13-824 -> 692 | G13: =SCF!B12 -> 1147 | I13: =SCF!D12 -> 1516
A14: Maintenance capital expenditures (2) | C14: -822 | E14: -2926 | G14: -6244 | I14: -7937
A15: Non-cash income tax benefit (expense) | C15: =-IS!C39+C38 -> 2145 | E15: =-IS!E39+E38 -> 318 | G15: =-IS!G39+G38 -> 2490 | I15: =-IS!I39+I38 -> 1095
A16: Other gains (losses), net | C16: =-SUM(IS!C31:C34) -> -59 | E16: 0 | G16: =-SUM(IS!G31:G34)+YTD!D17 -> 2803 | I16: -1540
A17: Net operating profit deferral from non-delivered
A18: merchandise and services (3) | C18: =QTD!C33 -> 6470 | E18: =QTD!H33 -> 16327 | G18: =YTD!C33 -> 54090 | I18: =YTD!H33 -> 66275 | S18: Filed | W18: Filed
A19: Distributable Cash Flow (1) | C19: =SUM(C8:C18) -> 12206 | E19: =SUM(E8:E18) -> 17087 | G19: =SUM(G8:G18) -> 55463 | I19: =SUM(I8:I18) -> 66241 | S19: YTD Q3 16 Amounts | U19: check | W19: YTD Q3 15 Amounts
A20: Supplemental Summary (1, 3): | C20: =C19-C42 -> -999 | E20: =E19-E42 -> -1439 | G20: =G19-G42 -> 514 | I20: =I19-I42 -> -1439
A21: Pre-need cemetery billings | C21: 35211 | E21: 36409 | G21: =C21+S21 -> 152071 | I21: =E21+W21 -> 158806 | S21: 116860 | U21: =(G21-C21)-S21 -> 0 | W21: 122397 | X21: =(I21-E21)-W21 -> 0
A22: At-need cemetery billings | C22: 25712 | E22: 25015 | G22: =C22+S22 -> 102054 | I22: =E22+W22 -> 103577 | S22: 76342 | U22: 0 | W22: 78562 | X22: 0
A23: Other cemetery billings | C23: 3757 | E23: 4426 | G23: =C23+S23 -> 11823 | I23: =E23+W23 -> 8624 | S23: 8066 | U23: 0 | W23: 4198 | X23: 0
A24: Total cemetery billings | C24: =SUM(C21:C23) -> 64680 | E24: =SUM(E21:E23) -> 65850 | G24: =SUM(G21:G23) -> 265948 | I24: =SUM(I21:I23) -> 271007 | S24: 201268 | U24: 0 | W24: 205157 | X24: 0
A25: Funeral home billings | C25: 17363 | E25: 17148 | G25: =S25+C25 -> 71632 | I25: =E25+W25 -> 67374 | S25: 54269 | U25: =(G25-C25)-S25 -> 0 | W25: 50226 | X25: 0
A26: Non-GAAP investment income from trusts | C26: 11579 | E26: 14620 | G26: =S26+C26 -> 41987 | I26: =E26+W26 -> 50937 | S26: 30408 | U26: 0 | W26: 36317 | X26: 0
A27: Interest income | C27: 2271 | E27: 2055 | G27: =C27+S27 -> 8949 | I27: =E27+W27 -> 8672 | S27: 6678 | U27: =(G27-C27)-S27 -> 0 | W27: 6617 | X27: 0
A28: Total billings and other non-GAAP income | C28: =SUM(C24:C27) -> 95893 | E28: =SUM(E24:E27) -> 99673 | G28: =SUM(G24:G27) -> 388516 | I28: =SUM(I24:I27) -> 397990 | S28: 292623 | U28: 0 | W28: 298317 | X28: 0
A29: Non-GAAP cost of goods sold (5) | C29: -6935 | E29: -9353 | G29: =S29+C29 -> -33894 | I29: =E29+W29 -> -35445 | S29: -26959 | U29: 0 | W29: -26092 | X29: 0
A30: Cemetery expense | C30: -19017 | E30: -17506 | G30: =C30+S30 -> -72284 | I30: =E30+W30 -> -71295 | S30: -53267 | U30: 0 | W30: -53789 | X30: 0
A31: Non-GAAP selling expense | C31: -19434 | E31: -17056 | G31: =S31+C31 -> -76077 | I31: =E31+W31 -> -73332 | S31: -56643 | U31: 0 | W31: -56276 | X31: 0
A32: General and administrative expense | C32: -10334 | E32: -9031 | G32: =C32+S32 -> -38053 | I32: =E32+W32 -> -36371 | S32: -27719 | U32: 0 | W32: -27340 | X32: 0
A33: Total non-GAAP cemetery expenses | C33: =SUM(C29:C32) -> -55720 | E33: =SUM(E29:E32) -> -52946 | G33: =SUM(G29:G32) -> -220308 | I33: =SUM(I29:I32) -> -216443 | S33: -164588 | U33: 0 | W33: -163497 | X33: =(I33-E33)-W33 -> 0
A34: Non-GAAP funeral home expense | C34: -13515 | E34: -12571 | G34: =S34+C34 -> -55202 | I34: =E34+W34 -> -49482 | S34: -41687 | U34: 0 | W34: -36911 | X34: =(I34-E34)-W34 -> 0
A35: Non-GAAP cash corporate overhead (5) | C35: =G35-S35 -> -8436 | E35: -7679 | G35: =(IS!G22-SCF!B12-ebitda!G9)*-1 -> -32452 | I35: =(IS!I22-SCF!D12-ebitda!I9)*-1+36 -> -33834 | S35: -24016 | U35: =(G35-C35)-S35 -> 0 | W35: -26155 | X35: 0
A36: Total non-GAAP costs and expenses | C36: =SUM(C33:C35) -> -77671 | E36: =SUM(E33:E35) -> -73196 | G36: =SUM(G33:G35) -> -307962 | I36: =SUM(I33:I35) -> -299759 | S36: -230291 | U36: 0 | W36: -226563 | X36: 0
A37: Non-GAAP interest expense (7) | C37: =(-IS!C35-ebitda!C12)*-1 -> -5136 | E37: =(-IS!E35-ebitda!E12)*-1 -> -4941 | G37: =(-IS!G35-ebitda!G12)*-1 -> -20057 | I37: =(-IS!I35-ebitda!I12)*-1 -> -19636 | S37: -14921 | U37: =(G37-C37)-S37 -> 0 | W37: -14695 | X37: 0
A38: Non-GAAP income tax benefit (expense) | C38: =G38-S38 -> 941 | E38: =I38-W38 -> 51 | G38: =SCF!B24 -> 696 | I38: 157 | S38: -245 | U38: 0 | W38: 106 | X38: 0
A39: Cash gain (loss) on settlement (8) | C39: 0 | E39: -135 | G39: =S39+C39 -> 0 | I39: -3135 | S39: 0 | U39: 0 | W39: -3000 | X39: 0
A40: Maintenance capital expenditures (2) | C40: =C14 -> -822 | E40: =E14 -> -2926 | G40: =G14 -> -6244 | I40: =I14 -> -7937 | S40: -5422 | U40: 0 | W40: -5011 | X40: 0
A41: Total other non-GAAP costs and expenses | C41: =SUM(C37:C40) -> -5017 | E41: =SUM(E37:E40) -> -7951 | G41: =SUM(G37:G40) -> -25605 | I41: =SUM(I37:I40) -> -30551 | S41: -20588 | W41: -22600 | X41: 0
A42: Distributable Cash Flow (1) | C42: =C28--C36--C41 -> 13205 | E42: =E28--E36--E41 -> 18526 | G42: =G28--G36--G41 -> 54949 | I42: =I28--I36--I41 -> 67680 | K42: =C42-C19 -> 999 | M42: =E42-E19 -> 1439 | O42: =G42-G19 -> -514 | Q42: =I42-I19 -> 1439 | S42: 41744 | U42: 0 | W42: 49154 | X42: 0
U43: 0
A44: Discretionary adjustments considered by the Board of Directors of the General Partner in the determination of quarterly cash distributions:
A45: Non-recurring legal settlement (8) | C45: 0 | E45: 135 | G45: =S45+C45 -> 0 | I45: 3135
A46: Non-recurring impact from early repayment marketing program (9) | C46: 0 | E46: 0 | G46: =S46+C46 -> 0 | I46: 1765
A47: Distributable Cash Flow with discretionary adjustments by the | S47: 0
A48: Board of Directors of the General Partner | C48: =SUM(C42:C46) -> 13205 | E48: =SUM(E42:E46) -> 18661 | G48: =SUM(G42:G46) -> 54949 | I48: =SUM(I42:I46) -> 72580
A49: Cash flow impact of certain Statement of Cash Flows operating activity:
A50: Accounts Receivable, net | C50: =G50--9167 -> -1614 | E50: =I50--4838 -> -4035 | G50: =SCF!B19 -> -10781 | I50: =SCF!D19 -> -8873
A51: Merchandise trust fund | C51: =G51--13248 -> -3853 | E51: =I51--33403 -> -11237 | G51: =SCF!B20 -> -17101 | I51: =SCF!D20 -> -44640
A52: Cash flow impact of certain Statement of Cash Flows financing activity:
A53: Proceeds from/(repayments of) debt for certain working capital changes | C53: 5383 | E53: 22964 | G53: 27798 | I53: 61205
A54: Cash on hand – beginning of period | C54: 15610 | E54: 11792 | G54: 15153 | I54: 10401 | S54: 15153 | W54: 10401
A55: Distributable Available Cash (1) | C55: =SUM(C48:C54) -> 28731 | E55: =SUM(E48:E54) -> 38145 | G55: =SUM(G48:G54) -> 70018 | I55: =SUM(I48:I54) -> 90673 | S55: 56897 | W55: 64320
A57: Cash distributions paid (10) | C57: 11103 | E57: 20823 | G57: 57777 | I57: 77512 | S57: 57777 | W57: 59564
A58: per limited partner unit | C58: 0.33 | E58: 0.66 | G58: 2.31 | I58: 2.61 | S58: 1.65 | W58: 1.95
A60: Excess of Distributable Available Cash after cash distributions
A61: paid (11) | C61: =C55-C57 -> 17628 | E61: =E55-E57 -> 17322 | G61: =G55-G57 -> 12241 | I61: =I55-I57 -> 13161 | S61: -880 | W61: 4756
C70: =C55-E55 -> -9414
C71: =C70/E55 -> -0.2467951239

Sheet Rec Non GAAP QTD (hidden)
B2: =LEFT(lead!C5,18) -> Three Months Ended | G2: =LEFT(lead!C5,18) -> Three Months Ended
B3: =lead!$C$2 -> December 31, 2016 | G3: =LEFT(lead!$C$2,13)&" "& lead!$C$9 -> December 31, 2015
B4: (unaudited; in thousands)
B5: GAAP | C5: Net Deferral | D5: Other | E5: Non-GAAP | G5: GAAP | H5: Net Deferral | I5: Other | J5: Non-GAAP
B6: Results | C6: Adjustments | D6: Adjustments | E6: Results | G6: Results | H6: Adjustments | I6: Adjustments | J6: Results
A7: Investment income from trusts | B7: =QTD!B14 -> 8613 | C7: =(B7-E7+D7)*-1 -> 2966 | D7: =QTD!D14 -> 0 | E7: =ebitda!C26 -> 11579 | G7: =QTD!G14 -> 6905 | H7: =(G7-J7+I7)*-1 -> 7715 | I7: =QTD!I14 -> 0 | J7: =ebitda!E26 -> 14620
A8: Cost of goods sold (5) | B8: =QTD!B21 -> 9959 | C8: -123 | D8: =QTD!D21 -> -2901 | E8: =-ebitda!C29 -> 6935 | G8: =QTD!G21 -> 15513 | H8: =(G8-J8+I8)*-1 -> -563 | I8: =QTD!I21 -> -5597 | J8: =-ebitda!E29 -> 9353
A9: Selling expense | B9: =QTD!B23 -> 19524 | C9: -90 | D9: =QTD!D23 -> 0 | E9: =-ebitda!C31 -> 19434 | G9: =QTD!G23 -> 14930 | H9: 2126 | I9: =QTD!I23 -> 0 | J9: =-ebitda!E31 -> 17056
A10: Funeral home expenses | B10: =QTD!B26 -> 12966 | C10: 549 | D10: =QTD!D26 -> 0 | E10: =-ebitda!C34 -> 13515 | G10: =QTD!G26 -> 11906 | H10: 665 | I10: =QTD!I26 -> 0 | J10: =-ebitda!E34 -> 12571
A11: Corporate overhead (6) | B11: =QTD!B27 -> 9512 | C11: 0 | D11: =QTD!D27 -> -1076 | E11: =-ebitda!C35 -> 8436 | G11: =QTD!G27 -> 9982 | H11: -36 | I11: =QTD!I27 -> -2267 | J11: =-ebitda!E35 -> 7679
A12: Interest expense | B12: =-IS!C35 -> 7056 | C12: -1920 | D12: 0 | E12: =-ebitda!C37 -> 5136 | G12: =-IS!E35 -> 5683 | H12: -742 | I12: 0 | J12: =-ebitda!E37 -> 4941
A13: Income tax expense (benefit) | B13: =-IS!C39 -> 1204 | C13: -2145 | D13: 0 | E13: =-ebitda!C38 -> -941 | G13: =-IS!E39 -> 267 | H13: -318 | I13: 0 | J13: =-ebitda!E38 -> -51
A14: Cemetery margin | B14: =QTD!B37 -> 4604 | C14: 4356 | D14: 0 | E14: =QTD!E37 -> 8960 | G14: =QTD!G37 -> 700 | H14: 12204 | I14: 0 | J14: =QTD!J37 -> 12904
A15: Funeral home margin | B15: =QTD!B41 -> 1799 | C15: 2049 | D15: 0 | E15: =QTD!E41 -> 3848 | G15: =QTD!G41 -> 2903 | H15: 1674 | I15: 0 | J15: =QTD!J41 -> 4577

Sheet Rec Non GAAP YTD (hidden)
B2: Years Ended | G2: =B2 -> Years Ended
B3: =lead!$C$2 -> December 31, 2016 | G3: =LEFT(lead!$C$2,13)&" "& lead!$C$9 -> December 31, 2015
B4: (unaudited; in thousands)
B5: GAAP | C5: Net Deferral | D5: Other | E5: Non-GAAP | G5: GAAP | H5: Net Deferral | I5: Other | J5: Non-GAAP
B6: Results | C6: Adjustments | D6: Adjustments | E6: Results | G6: Results | H6: Adjustments | I6: Adjustments | J6: Results
A7: Investment income from trusts | B7: =YTD!B14 -> 26742 | C7: =(B7-E7+D7)*-1 -> 15245 | D7: =YTD!D14 -> 0 | E7: =ebitda!G26 -> 41987 | G7: =YTD!G14 -> 28894 | H7: =(G7-J7+I7)*-1 -> 22043 | I7: =YTD!I14 -> 0 | J7: =ebitda!I26 -> 50937
A8: Cost of goods sold (5) | B8: =YTD!B21 -> 44442 | C8: -874 | D8: =YTD!D21 -> -9674 | E8: =-ebitda!G29 -> 33894 | G8: =YTD!G21 -> 50870 | H8: =(G8-J8+I8)*-1 -> -2322 | I8: =YTD!I21 -> -13103 | J8: =-ebitda!I29 -> 35445
A9: Selling expense | B9: =YTD!B23 -> 66833 | C9: 9244 | D9: =YTD!D23 -> 0 | E9: =-ebitda!G31 -> 76077 | G9: =YTD!G23 -> 59256 | H9: 14076 | I9: =YTD!I23 -> 0 | J9: =-ebitda!I31 -> 73332
A10: Funeral home expenses | B10: =YTD!B26 -> 53263 | C10: 1939 | D10: =YTD!D26 -> 0 | E10: =-ebitda!G34 -> 55202 | G10: =YTD!G26 -> 47413 | H10: 2069 | I10: =YTD!I26 -> 0 | J10: =-ebitda!I34 -> 49482
A11: Corporate overhead (6) | B11: =YTD!B27 -> 39618 | C11: 0 | D11: =YTD!D27 -> -7166 | E11: =-ebitda!G35 -> 32452 | G11: =YTD!G27 -> 38609 | H11: -36 | I11: =YTD!I27 -> -4739 | J11: =-ebitda!I35 -> 33834
A12: Interest expense | B12: =-IS!G35 -> 24487 | C12: -4430 | D12: 0 | E12: =-ebitda!G37 -> 20057 | G12: =-IS!I35 -> 22585 | H12: -2949 | I12: 0 | J12: =-ebitda!I37 -> 19636
A13: Income tax expense (benefit) | B13: =-IS!G39 -> 1794 | C13: -2490 | D13: 0 | E13: =-ebitda!G38 -> -696 | G13: =-IS!I39 -> 938 | H13: -1095 | I13: 0 | J13: =-ebitda!I38 -> -157
A14: Cemetery margin | B14: =YTD!B37 -> 6195 | C14: 39445 | D14: 0 | E14: =YTD!E37 -> 45640 | G14: =YTD!G37 -> 4983 | H14: 49581 | I14: 0 | J14: =YTD!J37 -> 54564
A15: Funeral home margin | B15: =YTD!B41 -> 6073 | C15: 10357 | D15: 0 | E15: =YTD!E41 -> 16430 | G15: =YTD!G41 -> 10470 | H15: 7422 | I15: 0 | J15: =YTD!J41 -> 17892

Sheet QTD (hidden)
B2: =LEFT(lead!C5,18) -> Three Months Ended
B3: =lead!$C$2 -> December 31, 2016 | G3: =LEFT(lead!$C$2,13)&" "& lead!$C$9 -> December 31, 2015
B4: (unaudited; in thousands)
B6: GAAP | C6: Net Deferral | D6: Other | E6: Non-GAAP | G6: GAAP | H6: Net Deferral | I6: Other | J6: Non-GAAP
B7: Results | C7: Adjustments | D7: Adjustments | E7: Results | G7: Results | H7: Adjustments | I7: Adjustments | J7: Results
A8: Revenues
A9: Pre-need cemetery revenues | B9: 34931 | C9: =(B9-E9+D9)*-1 -> 280 | D9: 0 | E9: =ebitda!C21 -> 35211 | G9: 29829 | H9: =(G9-J9+I9)*-1 -> 6580 | I9: 0 | J9: =ebitda!E21 -> 36409 | M9: =B9-G9 -> 5102 | N9: =E9-J9 -> -1198
A10: At-need cemetery revenues | B10: 24542 | C10: 1170 | D10: 0 | E10: =ebitda!C22 -> 25712 | G10: 24493 | H10: =(G10-J10+I10)*-1 -> 522 | I10: 0 | J10: =ebitda!E22 -> 25015 | M10: =B10-G10 -> 49 | N10: =E10-J10 -> 697
A11: Other cemetery revenues | B11: 4034 | C11: -277 | D11: 0 | E11: =ebitda!C23 -> 3757 | G11: 4719 | H11: -293 | I11: 0 | J11: =ebitda!E23 -> 4426 | M11: -685 | N11: -669
A12: Total cemetery revenues | B12: =SUM(B9:B11) -> 63507 | C12: 1173 | D12: =SUM(D9:D11) -> 0 | E12: =SUM(E9:E11) -> 64680 | G12: =SUM(G9:G11) -> 59041 | H12: =SUM(H9:H11) -> 6809 | I12: 0 | J12: 65850 | M12: 4466 | N12: -1170
A13: Funeral home revenues | B13: 14765 | C13: 2598 | D13: 0 | E13: =ebitda!C25 -> 17363 | G13: 14809 | H13: =(G13-J13+I13)*-1 -> 2339 | I13: 0 | J13: =ebitda!E25 -> 17148 | M13: -44 | N13: 215
A14: Investment income from trusts | B14: 8613 | C14: 2966 | D14: 0 | E14: =ebitda!C26 -> 11579 | G14: 6905 | H14: =(G14-J14+I14)*-1 -> 7715 | I14: 0 | J14: =ebitda!E26 -> 14620 | M14: 1708 | N14: -3041 | P14: =B14-G14 -> 1708 | Q14: =P14/G14 -> 0.2473569877
A15: Interest income | B15: 2271 | C15: 0 | D15: 0 | E15: =ebitda!C27 -> 2271 | G15: 2055 | H15: 0 | I15: 0 | J15: =ebitda!E27 -> 2055 | M15: 216 | N15: 216
M16: 0 | N16: 0
A17: Total revenues | B17: =SUM(B12:B15) -> 89156 | C17: =SUM(C12:C15) -> 6737 | D17: =SUM(D12:D15) -> 0 | E17: =SUM(E12:E15) -> 95893 | G17: =SUM(G12:G15) -> 82810 | H17: =SUM(H12:H15) -> 16863 | I17: =SUM(I12:I15) -> 0 | J17: =SUM(J12:J15) -> 99673 | M17: 6346 | N17: -3780 | P17: =B17-G17 -> 6346 | Q17: =P17/G17 -> 0.07663325685
M18: 0 | N18: 0
A19: Costs and expenses | E19: =E17-ebitda!C28 -> 0 | J19: =J17-ebitda!E28 -> 0 | M19: 0 | N19: 0 | R19: should be zero
M20: 0 | N20: 0
A21: Cost of goods sold (4) | B21: =IS!C18 -> 9959 | C21: =(B21-E21+D21)*-1 -> -123 | D21: =(SCF!B10-6773)*-1 -> -2901 | E21: =-ebitda!C29 -> 6935 | G21: =IS!E18 -> 15513 | H21: =(G21-J21+I21)*-1 -> -563 | I21: =(SCF!D10-7506)*-1 -> -5597 | J21: =-ebitda!E29 -> 9353 | M21: -5554 | N21: -2418
A22: Cemetery expense | B22: =IS!C19 -> 19469 | C22: =(B22-E22+D22)*-1 -> -452 | D22: 0 | E22: =-ebitda!C30 -> 19017 | G22: =IS!E19 -> 17507 | H22: =(G22-J22+I22)*-1 -> -1 | I22: 0 | J22: =-ebitda!E30 -> 17506 | M22: 1962 | N22: 1511
A23: Selling expense | B23: =IS!C20 -> 19524 | C23: -90 | D23: 0 | E23: =-ebitda!C31 -> 19434 | G23: =IS!E20 -> 14930 | H23: =(G23-J23+I23)*-1-36 -> 2090 | I23: 0 | J23: =-ebitda!E31 -> 17056 | M23: 4594 | N23: 2378
A24: General and administrative expense | B24: =IS!C21 -> 9951 | C24: =(B24-E24+D24)*-1 -> 383 | D24: 0 | E24: =-ebitda!C32 -> 10334 | G24: =IS!E21 -> 10391 | H24: -1360 | I24: 0 | J24: =-ebitda!E32 -> 9031 | M24: -440 | N24: 1303
A25: Total cemetery expenses | B25: =SUM(B21:B24) -> 58903 | C25: =SUM(C21:C24) -> -282 | D25: -2901 | E25: 55720 | G25: =SUM(G21:G24) -> 58341 | H25: 166 | I25: -5597 | J25: 52946 | M25: 562 | N25: 2774 | R25: =E25--ebitda!C33 -> 0 | S25: =J25--ebitda!E33 -> 0 | T25: should be zero
A26: Funeral home expenses | B26: =SUM(IS!C25:C27) -> 12966 | C26: =(B26-E26+D26)*-1 -> 549 | D26: 0 | E26: =-ebitda!C34 -> 13515 | G26: =SUM(IS!E25:E27) -> 11906 | H26: =(G26-J26+I26+295)*-1 -> 370 | I26: 0 | J26: =-ebitda!E34 -> 12571 | M26: 1060 | N26: 944
A27: Corporate overhead (5) | B27: =IS!C22 -> 9512 | C27: =(B27-E27+D27)*-1 -> 0 | D27: =-ebitda!C9-ebitda!C13 -> -1076 | E27: =-ebitda!C35 -> 8436 | G27: =IS!E22 -> 9982 | I27: =-(ebitda!E9+ebitda!E13) -> -2267 | J27: =-ebitda!E35 -> 7679 | M27: -470 | N27: 757
A28: Depreciation and amortization | B28: =IS!C23 -> 3752 | C28: 0 | D28: =-B28 -> -3752 | E28: 0 | G28: =IS!E23 -> 3596 | H28: =(G28-J28+I28)*-1 -> 0 | I28: =-G28 -> -3596 | J28: 0 | M28: 156 | N28: 0
M29: 0 | N29: 0
A30: Total costs and expenses | B30: =SUM(B25:B28) -> 85133 | C30: =SUM(C25:C28) -> 267 | D30: =SUM(D25:D28) -> -7729 | E30: =SUM(E25:E28) -> 77671 | G30: =SUM(G25:G28) -> 83825 | H30: =SUM(H25:H28) -> 536 | I30: =SUM(I25:I28) -> -11460 | J30: =SUM(J25:J28) -> 73196 | M30: 1308 | N30: 4475 | R30: =E30--ebitda!C36 -> 0 | S30: =J30--ebitda!E36 -> 0 | T30: should be zero
M31: 0 | N31: 0
A32: GAAP Operating profit (loss) & | M32: 0 | N32: 0
A33: Adjusted EBITDA | B33: =+B17-B30 -> 4023 | C33: =+C17-C30 -> 6470 | D33: =+D17-D30 -> 7729 | E33: =SUM(B33:D33) -> 18222 | G33: =+G17-G30 -> -1015 | H33: =+H17-H30 -> 16327 | I33: =+I17-I30 -> 11460 | J33: =SUM(G33:I33) -> 26772 | M33: 5038 | N33: -8550
M34: 0 | N34: 0
A35: =A12 -> Total cemetery revenues | B35: =B12 -> 63507 | C35: =C12 -> 1173 | D35: =D12 -> 0 | E35: =E12 -> 64680 | G35: =G12 -> 59041 | H35: =H12 -> 6809 | I35: =I12 -> 0 | J35: =J12 -> 65850 | M35: 4466 | N35: -1170
A36: =A25 -> Total cemetery expenses | B36: =B25 -> 58903 | C36: =C25 -> -282 | D36: =D25 -> -2901 | E36: =E25 -> 55720 | G36: =G25 -> 58341 | H36: =H25 -> 166 | I36: =I25 -> -5597 | J36: =J25 -> 52946 | M36: 562 | N36: 2774
A37: Cemetery margin | B37: =B35-B36 -> 4604 | C37: =C35-C36 -> 1455 | D37: =D35-D36 -> 2901 | E37: =E35-E36 -> 8960 | G37: =G35-G36 -> 700 | H37: =H35-H36 -> 6643 | I37: =I35-I36 -> 5597 | J37: =J35-J36 -> 12904 | M37: 3904 | N37: -3944 | P37: =B37-G37 -> 3904 | S37: =E37-J37 -> -3944 | T37: =S37/J37 -> -0.3056416615
M38: 0 | N38: 0
A39: =A13 -> Funeral home revenues | B39: =B13 -> 14765 | C39: =C13 -> 2598 | D39: 0 | E39: =E13 -> 17363 | G39: =G13 -> 14809 | H39: 2339 | I39: 0 | J39: 17148 | M39: -44 | N39: 215
A40: =A26 -> Funeral home expenses | B40: =B26 -> 12966 | C40: =C26 -> 549 | D40: 0 | E40: 13515 | G40: =G26 -> 11906 | H40: 370 | I40: 0 | J40: 12571 | M40: 1060 | N40: 944
A41: Funeral home margin | B41: =B39-B40 -> 1799 | C41: =C39-C40 -> 2049 | D41: =D39-D40 -> 0 | E41: =E39-E40 -> 3848 | G41: =G39-G40 -> 2903 | H41: =H39-H40 -> 1969 | I41: =I39-I40 -> 0 | J41: =J39-J40 -> 4577 | M41: -1104 | N41: -729 | P41: =B41-G41 -> -1104 | S41: =B41-G41 -> -1104
M42: 0 | N42: 0
A43: Same store cemetery margin | B43: =B37-B61 -> 4446 | C43: =C37-C61 -> 1062 | D43: =D37-D61 -> 2890 | E43: =E37-E61 -> 8398 | G43: =G37-G61 -> 700 | H43: =H37-H61 -> 6643 | I43: =I37-I61 -> 5597 | J43: =J37-J61 -> 12904 | M43: 3746 | N43: -4506
A44: Same store funeral home margin | B44: =B41-B62 -> 1600 | C44: =C41-C62 -> 1657 | D44: =D41-D62 -> 0 | E44: =E41-E62 -> 3257 | G44: =G41-G62 -> 3015 | H44: =H41-H62 -> 1969 | I44: =I41-I62 -> 0 | J44: =J41-J62 -> 4689 | M44: -1415 | N44: -1432
B47: =B41-G41 -> -1104
A49: Interest expense | B49: =-IS!C35 -> 7056 | C49: =(B49-E49+D49)*-1 -> -944 | D49: -976 | E49: =-ebitda!C37 -> 5136 | G49: =-IS!E35 -> 5683 | H49: =(G49-J49+I49)*-1 -> -2 | I49: -740 | J49: =-ebitda!E37 -> 4941
A50: Income taxes | B50: =-IS!C39 -> 1204 | C50: =(B50-E50+D50)*-1 -> -2641 | D50: 496 | E50: =-ebitda!C38 -> -941 | G50: =-IS!E39 -> 267 | H50: =(G50-J50+I50)*-1 -> 189 | I50: -507 | J50: =-ebitda!E38 -> -51
A54: Cem marg % | B54: =B37/B35 -> 0.07249594533 | E54: =E37/E35 -> 0.1385281385 | G54: =G37/G35 -> 0.01185616775 | J54: =J37/J35 -> 0.1959605163
A55: FH marg % | B55: =B41/B39 -> 0.1218421944 | E55: =E41/E39 -> 0.2216206877 | G55: =G41/G39 -> 0.1960294416 | J55: =J41/J39 -> 0.2669115932
A61: Acq cemetery margin | B61: 158 | C61: =415-22 -> 393 | D61: 11 | E61: =SUM(B61:D61) -> 562 | G61: 0 | H61: 0 | I61: 0 | J61: 0
A62: Acq fh margin | B62: =527-328 -> 199 | C62: 392 | D62: 0 | E62: =SUM(B62:D62) -> 591 | G62: -112 | H62: 0 | I62: 0 | J62: -112

Sheet Calcs (hidden)
A1: Supplemental Adjusted EBITDA, Distributable Cash Flow and Distributable Available Cash Summary:
D3: Q1 2016 | E3: Q2 2016 | F3: Q3 2016 | G3: Q4 2016 | H3: Q4 2015 | I3: Q3 2015 | J3: Q2 2015 | K3: Q1 2015 | P3: Operating Highlights: | R3: Q1 2016 | S3: Q2 2016 | T3: Q3 2016 | U3: Q4 2016 | V3: Q4 2015 | W3: Q3 2015 | X3: Q2 2015 | Y3: Q1 2015
A4: Revenues
A5: Pre-need cemetery revenues | D5: 33816 | E5: =ebitda!C21 -> 35211 | H5: 36409 | I5: 42492 | J5: 44012 | K5: 35893 | P5: Cemetery Highlights:
A6: At-need cemetery revenues | D6: 25733 | E6: =ebitda!C22 -> 25712 | H6: 25015 | I6: 25151 | J6: 27435 | K6: 25976 | AA6: Annual (2016) | AB6: Annual (2015) | AC6: % change
A7: Investment income from trusts | D7: 10615 | E7: =ebitda!C26 -> 11579 | H7: 14620 | I7: 8691 | J7: 15641 | K7: 11985 | Q7: Cemetery Margin | R7: =D5+D6+D10-D14-D15-D16-D17 -> 12329 | S7: 120400 | T7: 0 | U7: 0 | V7: 12904 | W7: 14956 | X7: 15561 | Y7: 11143 | AA7: =SUM(R7:U7) -> 132729 | AB7: =SUM(V7:Y7) -> 54564 | AC7: =(AA7-AB7)/AB7 -> 1.432537937
A8: Interest income | D8: 2229 | E8: =ebitda!C27 -> 2271 | H8: 2055 | I8: 2233 | J8: 2184 | K8: 2200 | Q8: Cemetery Margin Percentage | R8: =R7/(D5+D6+D10) -> 0.1959939591 | S8: 1.861471861 | V8: 0.1959605163 | W8: 0.2173932003 | X8: 0.2119161106 | Y8: 0.1770697601
A9: Funeral home revenues | D9: 19294 | E9: =ebitda!C25 -> 17363 | H9: 17148 | I9: 17077 | J9: 15734 | K9: 17415
A10: Other cemetery revenues | D10: 3356 | E10: =ebitda!C23 -> 3757 | H10: 4426 | I10: 1154 | J10: 1983 | K10: 1061
B11: Total revenues | D11: =SUM(D5:D10) -> 95043 | E11: =SUM(E5:E10) -> 95893 | F11: =SUM(F5:F10) -> 0 | G11: =SUM(G5:G10) -> 0 | H11: =SUM(H5:H10) -> 99673 | I11: 96798 | J11: 106989 | K11: 94530 | P11: Funeral Home Operations:
A13: Costs and expenses | Q13: Funeral Home Margin | R13: =D9-D19 -> 4885 | S13: 30878 | T13: 0 | U13: 0 | V13: 4577 | W13: 5452 | X13: 3059 | Y13: 4804 | AA13: =SUM(R13:U13) -> 35763 | AB13: =SUM(V13:Y13) -> 17892 | AC13: =(AA13-AB13)/AB13 -> 0.9988262911
A14: Cost of goods sold | D14: 7871 | E14: =ebitda!C29 -> -6935 | H14: 9353 | I14: 8743 | J14: 9660 | K14: 7689 | Q14: Funeral Home Margin Percentage | R14: =R13/D9 -> 0.2531875194 | S14: 1.778379312 | V14: 0.2669115932 | W14: 0.3192598232 | X14: 0.194419728 | Y14: 0.2758541487
A15: Cemetery expense | D15: 15856 | E15: =ebitda!C30 -> -19017 | H15: 17506 | I15: 18245 | J15: 19279 | K15: 16265
A16: Selling expense | D16: 17645 | E16: =ebitda!C31 -> -19434 | H16: 17056 | I16: 18034 | J16: 19738 | K16: 18504 | Q16: Trust Investment and Interest Income:
A17: G&A expense | D17: 9204 | E17: =ebitda!C32 -> -10334 | H17: 9031 | I17: 8819 | J17: 9192 | K17: 9329
A18: Cash corporate overhead | D18: 8167 | E18: =ebitda!C35 -> -8436 | H18: 7679 | I18: 7875 | J18: 9818 | K18: 8462 | Q18: Total Invest. | R18: =D7 -> 10615 | S18: =E7 -> 11579 | T18: =F7+F8 -> 0 | U18: 0 | V18: 16675 | W18: 10924 | X18: 17825 | Y18: 14185 | AA18: =SUM(R18:U18) -> 22194 | AB18: =SUM(V18:Y18) -> 59609 | AC18: =(AA18-AB18)/AB18 -> -0.6276736734
A19: Funeral home expense | D19: 14409 | E19: =ebitda!C34 -> -13515 | H19: 12571 | I19: 11625 | J19: 12675 | K19: 12611
B20: Total costs and expenses | D20: =SUM(D14:D19) -> 73152 | E20: =SUM(E14:E19) -> -77671 | F20: =SUM(F14:F19) -> 0 | G20: =SUM(G14:G19) -> 0 | H20: =SUM(H14:H19) -> 73196 | I20: 73341 | J20: 80362 | K20: 72860 | P20: Note: For trust fund investment returns within this section, refer to file at "J:\SEC Reporting\SEC Reporting\2016\Q1 2016\Support Schedules\Trust\1Q16 HISTORIC TRUST RETURNS.xlsx". Path may change depending on period.
A22: Adjusted EBITDA | D22: =D11-D20 -> 21891 | E22: =E11-E20 -> 173564 | F22: =F11-F20 -> 0 | G22: =G11-G20 -> 0 | H22: =H11-H20 -> 26477 | I22: 23457 | J22: 26627 | K22: 21670
A24: Cash interest expense | D24: -5033 | E24: =ebitda!C37 -> -5136 | H24: -4941 | I24: -4929 | J24: -5037 | K24: -4729
Q25: Corporate Expenses:
Q27: Corp. Overhead Expense | R27: =D18 -> 8167 | S27: -8436 | T27: 0 | U27: 0 | V27: 7679 | W27: 7875 | X27: 9818 | Y27: 8462

Sheet OTTI DETAIL (hidden)
C2: 108 | D2: 108 | E2: 108 | F2: 108 | G2: 108
C3: GAAP | D3: GAAP | E3: GAAP | F3: GAAP | G3: GAAP
C4: Entity | D4: Entity | E4: Entity | F4: Entity | G4: Entity
C5: Actual | D5: Actual | E5: Actual | F5: Actual | G5: Actual
C6: H-T-D(1609) | D6: H-T-D(1606) | E6: H-T-D(1512) | F6: H-T-D(1509) | G6: H-T-D(1412) | H6: OTTI
A7: 1120-0035 | B7: MERCH TRUST - ASSET IMPAIRMENT | C7: -57228222.32 | D7: -57842105.89 | E7: -58579690.52 | F7: -4052553.77 | G7: -8241164.28
A8: 1121-0000 | B8: DEF DUE FROM TRUST | C8: 57228222.32 | D8: 57842109.41 | E8: 58579694.05 | F8: 4052598.97 | G8: 8241209.48
A9: Merchandise Trust | B9: Merchandise Trust | C9: -1.877197064e-09 | D9: 3.519999998 | E9: -1.862645149e-09 | F9: -34208.72 | G9: -86074.37
A12: 1131-0001 | B12: DEFERRED COST CURRENT YEAR | C12: -32907902.96 | D12: -33059619.36 | E12: -33059619.36 | F12: -33059619.36 | G12: -33059619.36
A13: 1131-1195 | B13: DEFERRED COST RESERVE | C13: 30581466.29 | D13: 30596637.93 | E13: 30596637.93 | F13: 30596637.93 | G13: 30596637.93
A14: 1131-5024 | B14: MERCH LIAB COST MARK UP | C14: 19800000 | D14: 19800000 | E14: 19800000 | F14: 0 | G14: 0
A15: 1132-0001 | B15: DEFERRED SELLING EXPENSES | C15: 685134.44 | D15: 685134.44 | E15: 685134.44 | F15: 685134.44 | G15: 685134.44
A16: 1132-0002 | B16: DEFERRED SELLING AND OBTAINING RECLASS | C16: -111542030.6 | D16: -111542030.6 | E16: -111542030.6 | F16: -105278038.6 | G16: -97795353.59
A17: 1133-0000 | B17: PRE-ACQ DEFERRED MARGIN | C17: 1848475.93 | D17: 1848475.93 | E17: 1848475.93 | F17: 1848475.93 | G17: 1848475.93
A18: 1133-0001 | B18: PRE-ACQ DEFERRED MARGIN CURRENT YEAR | C18: 0 | D18: 0 | E18: 0 | F18: 0 | G18: 0
A19: 1133-0009 | B19: PRE-ACQ DEFERRED MARGIN - ACQUIS | C19: 0 | D19: 0 | E19: 0 | F19: 0 | G19: 0
A20: 1133-1195 | B20: DEFERRED MARGIN ALLOWANCE | C20: -2057634.67 | D20: -2057634.67 | E20: -2057634.67 | F20: -2057634.67 | G20: -2057634.67
A21: 1134-0001 | B21: DEFERRED TRUST | C21: 54237632.41 | D21: 54851515.98 | E21: 55589100.61 | F21: 1061963.86 | G21: 5250574.37
A22: 2131-0000 | B22: DEFERRED REVENUE - SAB | C22: -23773228.13 | D22: -24387115.22 | E22: -25124699.86 | F22: 29402395.22 | G22: 25213784.71
A23: 2131-0001 | B23: DEFERRED REVENUE - CURRENT YEAR | C23: -7258010.51 | D23: -6157406.66 | E23: -6157406.66 | F23: -6157406.66 | G23: -6157406.66
A24: 2131-0052 | B24: DEFERRED REVENUE - MISC | C24: -354666.72 | D24: -382666.71 | E24: -410666.7 | F24: -466666.68 | G24: -513333.33
A25: 1135-0000 | B25: DEFERRED TRUST - FH | C25: 0 | D25: 0 | E25: 0 | F25: 0 | G25: 0
A26: 2131-1195 | B26: DEF REV ALLOW DBTFL ACCOUNTS | C26: -25845492.61 | D26: -25845492.61 | E26: -25845492.61 | F26: -25845492.61 | G26: -25845492.61

Sheet YTD (hidden)
B2: =LEFT(lead!C6,21) -> Years Ended December
B3: =lead!$C$2 -> December 31, 2016 | G3: =LEFT(lead!$C$2,13)&" "& lead!$C$9 -> December 31, 2015
B4: (unaudited; in thousands) | U4: Nine months ended September 30, 2016 | Z4: Nine months ended September 30, 2015
B6: GAAP | C6: Net Deferral | D6: Other | E6: Non-GAAP | G6: GAAP | H6: Net Deferral | I6: Other | J6: Non-GAAP | U6: GAAP | V6: Net Deferral | W6: Other | X6: Non-GAAP | Z6: GAAP | AA6: Net Deferral | AB6: Other | AC6: Non-GAAP
B7: Results | C7: Adjustments | D7: Adjustments | E7: Results | G7: Results | H7: Adjustments | I7: Adjustments | J7: Results | U7: Results | V7: Adjustments | W7: Adjustments | X7: Results | Z7: Results | AA7: Adjustments | AB7: Adjustments | AC7: Results
A8: Revenues
A9: Pre-need cemetery revenues | B9: =QTD!B9+U9 -> 117481 | C9: =(B9-E9+D9)*-1 -> 34590 | D9: =QTD!D9+W9 -> 0 | E9: =ebitda!G21 -> 152071 | G9: =QTD!G9+Z9 -> 115213 | H9: =(G9-J9+I9)*-1 -> 43593 | I9: =QTD!I9+AB9 -> 0 | J9: =ebitda!I21 -> 158806 | M9: =B9-G9 -> 2268 | N9: =E9-J9 -> -6735 | U9: 82550 | V9: 34310 | W9: 0 | X9: 116860 | Z9: 85384 | AA9: 37013 | AB9: 0 | AC9: 122397
A10: At-need cemetery revenues | B10: =QTD!B10+U10 -> 98802 | C10: =(B10-E10+D10)*-1 -> 3252 | D10: =QTD!D10+W10 -> 0 | E10: =ebitda!G22 -> 102054 | G10: =QTD!G10+Z10 -> 99623 | H10: =(G10-J10+I10)*-1 -> 3954 | I10: =QTD!I10+AB10 -> 0 | J10: =ebitda!I22 -> 103577 | M10: =B10-G10 -> -821 | N10: =E10-J10 -> -1523 | U10: 74260 | V10: 2082 | W10: 0 | X10: 76342 | Z10: 75130 | AA10: 3432 | AB10: 0 | AC10: 78562
A11: Other cemetery revenues | B11: =QTD!B11+U11 -> 11593 | C11: =(B11-E11+D11)*-1 -> -1053 | D11: =QTD!D11+W11 -> 1283 | E11: =ebitda!G23 -> 11823 | G11: =QTD!G11+Z11 -> 9300 | H11: -676 | I11: =QTD!I11+AB11 -> 0 | J11: =ebitda!I23 -> 8624 | M11: 2293 | N11: 3199 | U11: 7559 | V11: -776 | W11: 1283 | X11: 8066 | Z11: 4581 | AA11: -383 | AB11: 0 | AC11: 4198
A12: Total cemetery revenues | B12: =SUM(B9:B11) -> 227876 | C12: =SUM(C9:C11) -> 36789 | D12: 1283 | E12: =SUM(E9:E11) -> 265948 | G12: =SUM(G9:G11) -> 224136 | H12: 46871 | I12: 0 | J12: 271007 | M12: 3740 | N12: -5059
A13: Funeral home revenues | B13: =QTD!B13+U13 -> 59336 | C13: =(B13-E13+D13)*-1 -> 12296 | D13: =QTD!D13+W13 -> 0 | E13: =ebitda!G25 -> 71632 | G13: =QTD!G13+Z13 -> 57883 | H13: =(G13-J13+I13)*-1 -> 9491 | I13: =QTD!I13+AB13 -> 0 | J13: =ebitda!I25 -> 67374 | M13: 1453 | N13: 4258 | U13: 44571 | V13: 9698 | W13: 0 | X13: 54269 | Z13: 43074 | AA13: 7152 | AB13: 0 | AC13: 50226
A14: Investment income from trusts | B14: =QTD!B14+U14 -> 26742 | C14: =(B14-E14+D14)*-1 -> 15245 | D14: =QTD!D14+W14 -> 0 | E14: =ebitda!G26 -> 41987 | G14: =QTD!G14+Z14 -> 28894 | H14: =(G14-J14+I14)*-1 -> 22043 | I14: =QTD!I14+AB14 -> 0 | J14: =ebitda!I26 -> 50937 | M14: -2152 | N14: -8950 | P14: =B14-G14 -> -2152 | Q14: =P14/G14 -> -0.07447913062 | U14: 18129 | V14: 12279 | W14: 0 | X14: 30408 | Z14: 21989 | AA14: 14328 | AB14: 0 | AC14: 36317
A15: Interest income | B15: =QTD!B15+U15 -> 8949 | C15: =(B15-E15+D15)*-1 -> 0 | D15: =QTD!D15+W15 -> 0 | E15: =ebitda!G27 -> 8949 | G15: =QTD!G15+Z15 -> 8672 | H15: =(G15-J15+I15)*-1 -> 0 | I15: =QTD!I15+AB15 -> 0 | J15: =ebitda!I27 -> 8672 | M15: 277 | N15: 277 | U15: 6678 | V15: 0 | W15: 0 | X15: 6678 | Z15: 6617 | AA15: 0 | AB15: 0 | AC15: 6617
A17: Total revenues | B17: =SUM(B12:B15) -> 322903 | C17: =SUM(C12:C15) -> 64330 | D17: =SUM(D12:D15) -> 1283 | E17: =SUM(E12:E15) -> 388516 | G17: =SUM(G12:G15) -> 319585 | H17: =SUM(H12:H15) -> 78405 | I17: =SUM(I12:I15) -> 0 | J17: =SUM(J12:J15) -> 397990 | M17: 3318 | N17: -9474 | P17: =B17-G17 -> 3318 | Q17: =P17/G17 -> 0.01038221443 | U17: =SUM(U9:U16) -> 233747 | V17: PQ | X17: =SUM(X9:X16) -> 292623 | Y17: PQ | Z17: =SUM(Z9:Z16) -> 236775 | AA17: PY | AC17: =SUM(AC9:AC16) -> 298317 | AD17: PY
E18: =E17-ebitda!G28 -> 0 | J18: =J17-ebitda!I28 -> 0 | R18: should be zero | U18: =SUM(U9:U15)-U17 -> 0 | Z18: =SUM(Z9:Z15)-Z17 -> 0
A19: Costs and expenses
A21: Cost of goods sold (4) | B21: =IS!G18 -> 44442 | C21: =(B21-E21+D21)*-1 -> -874 | D21: =QTD!D21+W21 -> -9674 | E21: =-ebitda!G29 -> 33894 | G21: =IS!I18 -> 50870 | H21: =(G21-J21+I21)*-1 -> -2322 | I21: =QTD!I21+AB21 -> -13103 | J21: =-ebitda!I29 -> 35445 | M21: -6428 | N21: -1551 | V21: -751 | W21: -6773 | X21: 26959 | AA21: -1759 | AB21: -7506 | AC21: 26092
A22: Cemetery expense | B22: =IS!G19 -> 72736 | C22: =(B22-E22+D22)*-1 -> -452 | D22: =QTD!D22+W22 -> 0 | E22: =-ebitda!G30 -> 72284 | G22: =IS!I19 -> 71296 | H22: =QTD!H22+AA22 -> -1 | I22: =QTD!I22+AB22 -> 0 | J22: =-ebitda!I30 -> 71295 | M22: 1440 | N22: 989 | V22: 0 | W22: 0 | X22: 53267 | AA22: 0 | AB22: 0 | AC22: 53789
A23: Selling expense | B23: =IS!G20 -> 66833 | C23: 9244 | D23: =QTD!D23+W23 -> 0 | E23: =-ebitda!G31 -> 76077 | G23: =IS!I20 -> 59256 | H23: =QTD!H23+AA23 -> 14040 | I23: =QTD!I23+AB23 -> 0 | J23: =-ebitda!I31 -> 73332 | M23: 7577 | N23: 2745 | V23: 9745 | W23: 0 | X23: 56643 | AA23: 11950 | AB23: 0 | AC23: 56276
A24: General and administrative expense | B24: =IS!G21 -> 37670 | C24: 383 | D24: =QTD!D24+W24 -> 0 | E24: =-ebitda!G32 -> 38053 | G24: =IS!I21 -> 37731 | H24: =QTD!H24+AA24 -> -1360 | I24: =QTD!I24+AB24 -> 0 | J24: =-ebitda!I32 -> 36371 | M24: -61 | N24: 1682 | V24: 0 | W24: 0 | X24: 27719 | AA24: 0 | AB24: 0 | AC24: 27340
A25: Total cemetery expenses | B25: =SUM(B21:B24) -> 221681 | C25: =SUM(C21:C24) -> 8301 | D25: -9674 | E25: 220308 | G25: =SUM(G21:G24) -> 219153 | H25: 10357 | I25: -13103 | J25: 216443 | M25: 2528 | N25: 3865 | R25: =E25--ebitda!G33 -> 0 | S25: =J25--ebitda!I33 -> 0 | T25: should be zero
A26: Funeral home expenses | B26: =SUM(IS!G25:G27) -> 53263 | C26: 1939 | D26: =QTD!D26+W26 -> 0 | E26: =-ebitda!G34 -> 55202 | G26: =SUM(IS!I25:I27) -> 47413 | H26: =QTD!H26+AA26-1 -> 1773 | I26: =QTD!I26+AB26 -> 0 | J26: =-ebitda!I34 -> 49482 | M26: 5850 | N26: 5720 | V26: 1390 | W26: 0 | X26: 41687 | AA26: 1404 | AB26: 0 | AC26: 36911
A27: Corporate overhead (5) | B27: =IS!G22 -> 39618 | C27: 0 | D27: =QTD!D27+W27 -> -7166 | E27: =-ebitda!G35 -> 32452 | G27: =IS!I22 -> 38609 | I27: =-(ebitda!I9+ebitda!I13) -> -4739 | J27: =-ebitda!I35 -> 33834 | M27: 1009 | N27: -1382 | V27: 0 | W27: -6090 | X27: 24016 | AA27: 0 | AB27: -2472 | AC27: 26155
A28: Depreciation and amortization | B28: =IS!G23 -> 12899 | C28: 0 | D28: =-B28 -> -12899 | E28: =QTD!E28+X28 -> 0 | G28: =IS!I23 -> 12803 | H28: 0 | I28: =-G28 -> -12803 | J28: =SUM(G28:I28) -> 0 | M28: 96 | N28: 0 | X28: 0
M29: 0 | N29: 0
A30: Total costs and expenses | B30: =SUM(B25:B28) -> 327461 | C30: =SUM(C25:C28) -> 10240 | D30: =SUM(D25:D28) -> -29739 | E30: =SUM(E25:E28) -> 307962 | G30: =SUM(G25:G28) -> 317978 | H30: =SUM(H25:H28) -> 12130 | I30: =SUM(I25:I28) -> -30645 | J30: =SUM(J25:J28) -> 299759 | M30: 9483 | N30: 8203 | R30: =E30--ebitda!G36 -> 0 | S30: =J30--ebitda!I36 -> 0 | T30: should be zero | X30: =SUM(X21:X28) -> 230291 | Y30: PQ | AC30: =SUM(AC21:AC28) -> 226563 | AD30: PY
M31: 0 | N31: 0
A32: GAAP Operating profit (loss) & | M32: 0 | N32: 0
A33: Adjusted EBITDA | B33: =+B17-B30 -> -4558 | C33: =+C17-C30 -> 54090 | D33: =+D17-D30 -> 31022 | E33: =SUM(B33:D33) -> 80554 | G33: =+G17-G30 -> 1607 | H33: =+H17-H30 -> 66275 | I33: =+I17-I30 -> 30645 | J33: 98231 | K33: 0 | M33: -6165 | N33: -17677
M34: 0 | N34: 0
A35: =A12 -> Total cemetery revenues | B35: =B12 -> 227876 | C35: =C12 -> 36789 | D35: =D12 -> 1283 | E35: =E12 -> 265948 | G35: =G12 -> 224136 | H35: =H12 -> 46871 | I35: =I12 -> 0 | J35: =J12 -> 271007 | M35: 3740 | N35: -5059
A36: =A25 -> Total cemetery expenses | B36: =B25 -> 221681 | C36: =C25 -> 8301 | D36: =D25 -> -9674 | E36: =E25 -> 220308 | G36: =G25 -> 219153 | H36: =H25 -> 10357 | I36: =I25 -> -13103 | J36: =J25 -> 216443 | M36: 2528 | N36: 3865
A37: Cemetery margin | B37: =B35-B36 -> 6195 | C37: =C35-C36 -> 28488 | D37: =D35-D36 -> 10957 | E37: =E35-E36 -> 45640 | G37: =G35-G36 -> 4983 | H37: =H35-H36 -> 36514 | I37: =I35-I36 -> 13103 | J37: =J35-J36 -> 54564 | M37: 1212 | N37: -8924 | P37: =B37-G37 -> 1212 | U37: =E37-J37 -> -8924 | V37: =U37/J37 -> -0.1635510593
M38: 0 | N38: 0
A39: =A13 -> Funeral home revenues | B39: =B13 -> 59336 | C39: =C13 -> 12296 | D39: 0 | E39: =E13 -> 71632 | G39: =G13 -> 57883 | H39: 9491 | I39: 0 | J39: 67374 | M39: 1453 | N39: 4258
A40: =A26 -> Funeral home expenses | B40: =B26 -> 53263 | C40: =C26 -> 1939 | D40: 0 | E40: 55202 | G40: =G26 -> 47413 | H40: 1773 | I40: 0 | J40: 49482 | M40: 5850 | N40: 5720
A41: Funeral home margin | B41: =B39-B40 -> 6073 | C41: =C39-C40 -> 10357 | D41: =D39-D40 -> 0 | E41: =E39-E40 -> 16430 | G41: =G39-G40 -> 10470 | H41: =H39-H40 -> 7718 | I41: =I39-I40 -> 0 | J41: =J39-J40 -> 17892 | M41: -4397 | N41: -1462 | P41: =B41-G41 -> -4397
M42: 0 | N42: 0
A43: Same store cemetery margin | B43: =B37-B61 -> 6037 | C43: =C37-C61 -> 28095 | D43: =D37-D61 -> 10946 | E43: =E37-E61 -> 45078 | G43: =G37-G61 -> 4983 | H43: =H37-H61 -> 36514 | I43: =I37-I61 -> 13103 | J43: =J37-J61 -> 54564 | M43: 1054 | N43: -9486
A44: Same store funeral home margin | B44: =B41-B62 -> 5874 | C44: =C41-C62 -> 9965 | D44: =D41-D62 -> 0 | E44: =E41-E62 -> 15839 | G44: =G41-G62 -> 10582 | H44: =H41-H62 -> 7718 | I44: =I41-I62 -> 0 | J44: =J41-J62 -> 18004 | M44: -4708 | N44: -2165
B47: =B41-G41 -> -4397
A49: Interest expense | B49: =-IS!G35 -> 24487 | C49: =(B49-E49+D49)*-1 -> -1920 | D49: -2510 | E49: =-ebitda!G37 -> 20057 | G49: =-IS!I35 -> 22585 | H49: =(G49-J49+I49)*-1 -> -742 | I49: -2207 | J49: =-ebitda!I37 -> 19636
A50: Income taxes | B50: =-IS!G39 -> 1794 | C50: =(B50-E50+D50)*-1 -> -2145 | D50: -345 | E50: =-ebitda!G38 -> -696 | G50: =-IS!I39 -> 938 | H50: =(G50-J50+I50)*-1 -> -318 | I50: -777 | J50: =-ebitda!I38 -> -157
A54: Cem marg % | B54: =B37/B35 -> 0.02718583791 | E54: =E37/E35 -> 0.1716124957 | G54: =G37/G35 -> 0.02223203769 | J54: =J37/J35 -> 0.2013379728
A55: FH marg % | B55: =B41/B39 -> 0.1023493326 | E55: =E41/E39 -> 0.2293667635 | G55: =G41/G39 -> 0.1808821243 | J55: =J41/J39 -> 0.2655623831
A61: Acq cemetery margin | B61: 158 | C61: =415-22 -> 393 | D61: 11 | E61: =SUM(B61:D61) -> 562 | G61: 0 | H61: 0 | I61: 0 | J61: 0
A62: Acq fh margin | B62: =527-328 -> 199 | C62: 392 | D62: 0 | E62: =SUM(B62:D62) -> 591 | G62: -112 | H62: 0 | I62: 0 | J62: -112

Sheet CF Analysis (hidden)
C2: =lead!C5 -> Three Months Ended December 31, | G2: =lead!C6 -> Years Ended December 31,
C3: 2016 | E3: 2015 | G3: =C3 -> 2016 | I3: =E3 -> 2015 | L3: YTD 9.30.16 | M3: YTD 9.30.15 | P3: Three Months Ended September 30, | T3: Three Months Ended June 30, | X3: Three Months Ended March 31, | AB3: Years Ended December 31,
C4: (in thousands) | G4: (in thousands) | P4: 2016 | R4: 2015 | T4: 2016 | V4: 2015 | X4: 2016 | Z4: 2015 | AB4: 2014 | AC4: 2013 | AD4: 2012
A6: GAAP operating cash flows | C6: =G6-L6 -> 4280 | E6: =I6-M6 -> -7968 | G6: =+SCF!B26 -> 22767 | I6: =+SCF!D26 -> 4062 | L6: 18487 | M6: 12030 | P6: =18487-8459 -> 10028 | R6: =12030-3975 -> 8055 | T6: =8459-5234 -> 3225 | V6: =3975-5853 -> -1878 | X6: 5234 | Z6: 5853 | AB6: 19448 | AC6: 35077 | AD6: 31896
A8: Add net cash inflows into the merchandise trust | C8: =G8-L8 -> 3853 | E8: =I8-M8 -> 11237 | G8: =-SCF!B20 -> 17101 | I8: =-SCF!D20 -> 44640 | L8: 13248 | M8: 33403 | P8: =13248-10517 -> 2731 | R8: =33403-23478 -> 9925 | T8: =10517-X8 -> -1096 | V8: =23478-Z8 -> 13247 | X8: 11613 | Z8: 10231 | AB8: 28828 | AC8: 36919 | AD8: 11806
A9: Add net increase (decrease) in accounts receivable, net of allowance | C9: =G9-L9 -> 1614 | E9: =I9-M9 -> 4035 | G9: =-SCF!B19 -> 10781 | I9: =-SCF!D19 -> 8873 | L9: 9167 | M9: 4838 | P9: =9167-5867 -> 3300 | R9: =4838-9469 -> -4631 | T9: =5867-X9 -> 4640 | V9: =9469-Z9 -> 4992 | X9: 1227 | Z9: 4477 | AB9: 10356 | AC9: 8834 | AD9: 4265
A10: Add net decrease (deduct net increase) in accounts payable
A11: and accrued expenses | C11: =G11-L11 -> 7267 | E11: =I11-M11 -> 4446 | G11: =-SCF!B25 -> -3767 | I11: =-SCF!D25 -> -1256 | L11: -11034 | M11: -5702 | P11: =-11034--4890 -> -6144 | R11: =-5702--5458 -> -244 | T11: =-4890-X11 -> 2799 | V11: =-5458-Z11 -> -2883 | X11: -7689 | Z11: -2575 | AB11: 875 | AC11: -8145 | AD11: 2930
A12: Other float related changes | C12: =-SCF!I72 -> -6775 | E12: =-SCF!K72 -> 6666 | G12: =-SCF!M72 -> 4080 | I12: =-SCF!O72 -> 13837 | P12: =-'Prior Qtrs Float amounts'!B25 -> 808 | R12: =-'Prior Qtrs Float amounts'!D25 -> 1103 | T12: =-'Prior Qtrs Float amounts'!F25 -> 5588 | V12: =-'Prior Qtrs Float amounts'!H25 -> 7646 | X12: =-'Prior Qtrs Float amounts'!J25 -> 4661 | Z12: =-'Prior Qtrs Float amounts'!L25 -> -1086 | AB12: =-'Prior Qtrs Float amounts'!O25 -> 9830 | AC12: =-'Prior Qtrs Float amounts'!P25 -> 8686 | AD12: =-'Prior Qtrs Float amounts'!Q25 -> 4131
A14: Adjusted operating cash flow generated | C14: =SUM(C6:C12) -> 10239 | E14: =SUM(E6:E12) -> 18416 | G14: =SUM(G6:G12) -> 50962 | I14: =SUM(I6:I12) -> 70156 | P14: =SUM(P6:P12) -> 10723 | R14: =SUM(R6:R12) -> 14208 | T14: =SUM(T6:T12) -> 15156 | V14: =SUM(V6:V12) -> 21124 | X14: =SUM(X6:X12) -> 15046 | Z14: =SUM(Z6:Z12) -> 16900 | AB14: =SUM(AB6:AB12) -> 69337 | AC14: =SUM(AC6:AC12) -> 81371 | AD14: =SUM(AD6:AD12) -> 55028
A16: Less: maintenance capital expenditures | C16: =ebitda!C40 -> -822 | E16: =ebitda!E40 -> -2926 | G16: =ebitda!G40 -> -6244 | I16: =ebitda!I40 -> -7937 | P16: -1129 | R16: -1632 | T16: -1289 | V16: -2065 | X16: -3004 | Z16: -1314 | AB16: -8398 | AC16: -6986 | AD16: -4874
A17: Plus: growth capital expenditures reclassified as operating expenses
A18: and deducted from adjusted operating cash generated (a) | C18: =+ebitda!C9 -> 1397 | E18: =+ebitda!E9 -> 1575 | G18: =+ebitda!G9 -> 6019 | I18: =+ebitda!I9 -> 3223 | P18: 1369 | R18: 963 | T18: 1516 | V18: 336 | X18: 1736 | Z18: 349 | AB18: 2269 | AC18: 1051 | AD18: 3123
A20: Distributable free cash flow generated | C20: =SUM(C14:C18) -> 10814 | E20: =SUM(E14:E18) -> 17065 | G20: =SUM(G14:G18) -> 50737 | I20: =SUM(I14:I18) -> 65442 | P20: =SUM(P14:P18) -> 10963 | R20: =SUM(R14:R18) -> 13539 | T20: =SUM(T14:T18) -> 15383 | V20: =SUM(V14:V18) -> 19395 | X20: =SUM(X14:X18) -> 13778 | Z20: =SUM(Z14:Z18) -> 15935 | AB20: =SUM(AB14:AB18) -> 63208 | AC20: =SUM(AC14:AC18) -> 75436 | AD20: =SUM(AD14:AD18) -> 53277
A21: Cash on hand - beginning of the period | C21: =ebitda!C54 -> 15610 | E21: =ebitda!E54 -> 11792 | G21: =ebitda!G54 -> 15153 | I21: =ebitda!I54 -> 10401 | P21: 9436 | R21: 13403 | T21: 13486 | V21: 6397 | X21: 15153 | Z21: 10401 | AB21: 12175 | AC21: 7946 | AD21: 12058
A23: Distributable cash available for the period
A25: Cash distribution declared | C25: ='Fin. Highlights12.2016'!B11 -> 11887 | E25: ='Fin. Highlights12.2016'!D11 -> 21387 | G25: ='Fin. Highlights12.2016'!F11 -> 69665 | I25: ='Fin. Highlights12.2016'!H11 -> 80950 | L25: 68062 | M25: 56689 | P25: 0.33 | R25: 0.66 | T25: 0.66 | V25: 0.65 | X25: 0.66 | Z25: 0.64 | AB25: 2.46 | AC25: 2.39 | AD25: 2.35
A28: (a) We maintain a credit facility from which we borrow to make acquisitions and pay acquisition related costs. We utilize this facility for these costs. Accordingly, distributable free cash flow is not negatively impacted by amounts spent on acquisitions that are recorded as expenses.

Sheet Prior Qtrs Float amounts (hidden)
A2: Cash Flow Info:
B3: Nine Months Ended September 30, | F3: Six Months Ended June 30, | J3: Three Months Ended March 31, | O3: 2014 | P3: 2013 | Q3: 2012
B4: 2016 | D4: 2015 | F4: 2016 | H4: 2015 | J4: 2016 | L4: 2015
A5: Other assets | B5: -6270 | D5: -6740 | F5: -3740 | H5: -4352 | J5: -2847 | L5: 2364 | M5: Float | O5: -2798 | P5: -563 | Q5: =527+-2165+128 -> -1510
A6: Deferred selling and obtaining costs | B6: -10716 | D6: -10959 | F6: -6868 | H6: -7483 | J6: -3379 | L6: -5109 | M6: Float | O6: -9797 | P6: -11681 | Q6: -7775
A7: Deferred revenue | B7: 53996 | D7: 60516 | F7: 32516 | H7: 43755 | J7: 16952 | L7: 23414 | M7: Float | O7: 52710 | P7: 68454 | Q7: 47548
A8: Deferred taxes (net) | B8: -245 | D8: -40 | F8: 81 | H8: -129 | J8: 17 | L8: -179 | M8: Float | O8: 2887 | P8: -4075 | Q8: -2398
N10: Total | O10: =SUM(O5:O8) -> 43002 | P10: =SUM(P5:P8) -> 52135 | Q10: =SUM(Q5:Q8) -> 35865
A12: Quarters (Three Months Ended)
A13: Other assets | B13: =B5-F5 -> -2530 | D13: =D5-H5 -> -2388 | F13: =F5-J5 -> -893 | H13: =H5-L5 -> -6716 | J13: =J5 -> -2847 | L13: =L5 -> 2364 | M13: Float
A14: Deferred selling and obtaining costs | B14: =B6-F6 -> -3848 | D14: =D6-H6 -> -3476 | F14: =F6-J6 -> -3489 | H14: =H6-L6 -> -2374 | J14: =J6 -> -3379 | L14: =L6 -> -5109 | M14: Float
A15: Deferred revenue | B15: =B7-F7 -> 21480 | D15: =D7-H7 -> 16761 | F15: =F7-J7 -> 15564 | H15: =H7-L7 -> 20341 | J15: =J7 -> 16952 | L15: =L7 -> 23414 | M15: Float
A16: Deferred taxes (net) | B16: =B8-F8 -> -326 | D16: =D8-H8 -> 89 | F16: =F8-J8 -> 64 | H16: =H8-L8 -> 50 | J16: =J8 -> 17 | L16: =L8 -> -179 | M16: Float
A18: Total | B18: =SUM(B13:B16) -> 14776 | D18: =SUM(D13:D16) -> 10986 | F18: =SUM(F13:F16) -> 11246 | H18: =SUM(H13:H16) -> 11301 | J18: =SUM(J13:J16) -> 10743 | L18: =SUM(L13:L16) -> 20490
A20: GAAP Adjustment Operating Profit (from filed press release - Financial and Operating Highlights table)
O22: 2014 | P22: 2013 | Q22: 2012
A23: FLOAT | B23: =B18 -> 14776 | D23: =D18 -> 10986 | F23: =F18 -> 11246 | H23: =H18 -> 11301 | J23: =J18 -> 10743 | L23: =L18 -> 20490 | O23: =O10 -> 43002 | P23: =P10 -> 52135 | Q23: =Q10 -> 35865
A24: GAAP Adjustment Operating Profit (Seg Consol Tabs) | B24: -15584 | D24: -12089 | F24: -16834 | H24: -18947 | J24: -15404 | L24: -19404 | O24: -52832 | P24: -60821 | Q24: -39996
A25: Other float related changes (To CF Analysis Tab) | B25: =SUM(B23:B24) -> -808 | D25: =SUM(D23:D24) -> -1103 | F25: =SUM(F23:F24) -> -5588 | H25: =SUM(H23:H24) -> -7646 | J25: =SUM(J23:J24) -> -4661 | L25: =SUM(L23:L24) -> 1086 | O25: =SUM(O23:O24) -> -9830 | P25: =SUM(P23:P24) -> -8686 | Q25: =SUM(Q23:Q24) -> -4131
